fUST/lending_fUST_20250611
["ID","MTS","AMOUNT","RATE_DAILY","PERIOD"]
[365303417,1749588647654,-460.0,0.00022739,4]
[365303418,1749588647664,-460.0,0.00022739,4]
[365303419,1749588647675,-472.76,0.00022739,4]
[365303420,1749588647685,-460.0,0.00022739,4]
[365303421,1749588647695,-410.0,0.00022739,4]
[365303422,1749588647705,-460.0,0.00022739,4]
[365303423,1749588647714,-460.0,0.00022739,4]
[365303424,1749588647724,-460.0,0.00022739,4]
[365303425,1749588647733,-460.0,0.00022739,4]
[365303426,1749588647742,-460.0,0.00022739,4]
[365303427,1749588647751,-460.0,0.00022739,4]
[365303428,1749588647760,-613.02,0.000228,7]
[365303429,1749588647769,-213.1263252,0.0002281,2]
[365303430,1749588647778,-160.0,0.00022827,2]
[365303431,1749588647788,-11858.11761888,0.00022827,2]
[365303432,1749588647797,-1864.08891747,0.00022831,8]
[365303433,1749588647807,-500.0,0.00022848,2]
[365303434,1749588647816,-506.27683546,0.00022848,2]
[365303435,1749588647825,-1200.0,0.00022848,2]
[365303436,1749588647835,-1864.08891747,0.00022934,8]
[365303437,1749588647845,-420.0,0.00022942,2]
[365303438,1749588647854,-364.9269501,0.00022959,2]
[365303439,1749588647863,-460.0,0.00023013,4]
[365303440,1749588647872,-460.0,0.00023013,4]
[365303441,1749588647883,-460.0,0.00023013,4]
[365303442,1749588647892,-460.0,0.00023013,4]
[365303443,1749588647902,-360.0,0.00023013,4]
[365303444,1749588647911,-360.0,0.00023013,4]
[365303445,1749588647920,-1374.56,0.00023013,4]
[365303446,1749588647930,-460.0,0.00023013,4]
[365303447,1749588647939,-460.0,0.00023013,4]
[365303448,1749588647949,-501.47,0.00023013,4]
[365303449,1749588647959,-460.0,0.00023013,4]
[365303450,1749588647969,-1447.28,0.00023013,4]
[365303451,1749588647979,-460.0,0.00023013,4]
[365303452,1749588647988,-460.0,0.00023013,4]
[365303453,1749588647998,-460.0,0.00023013,4]
[365303454,1749588648008,-460.0,0.00023013,4]
[365303455,1749588648018,-460.0,0.00023013,4]
[365303456,1749588648027,-343.738988,0.00023013,4]
[365303457,1749588648037,-460.0,0.00023013,4]
[365303458,1749588648046,-360.0,0.00023013,4]
[365303459,1749588648055,-460.0,0.00023013,4]
[365303460,1749588648065,-1347.28,0.00023013,4]
[365303461,1749588648075,-460.0,0.00023013,4]
[365303462,1749588648084,-1315.98,0.00023013,4]
[365303463,1749588648094,-1415.55,0.00023013,4]
[365303464,1749588648103,-460.0,0.00023013,4]
[365303465,1749588648113,-460.0,0.00023013,4]
[365303466,1749588648123,-460.0,0.00023013,4]
[365303467,1749588648133,-1157.58,0.00023013,4]
[365303468,1749588648142,-290.0,0.00023013,4]
[365303469,1749588648152,-477.52,0.00023013,4]
[365303470,1749588648161,-460.0,0.00023013,4]
[365303471,1749588648171,-972.44,0.00023013,4]
[365303472,1749588648180,-1004.8,0.00023013,4]
[365303473,1749588648189,-360.0,0.00023013,4]
[365303474,1749588648199,-1677.66,0.00023013,4]
[365303475,1749588648209,-161.84104812,0.00023013,4]
[365303476,1749588648218,-460.0,0.00023013,4]
[365303477,1749588648228,-460.0,0.00023013,4]
[365303478,1749588648237,-460.0,0.00023013,4]
[365303479,1749588648246,-472.76,0.00023013,4]
[365303480,1749588648256,-460.0,0.00023013,4]
[365303481,1749588648265,-560.0,0.00023013,4]
[365303482,1749588648275,-559.68,0.00023013,4]
[365303483,1749588648284,-460.0,0.00023013,4]
[365303484,1749588648294,-460.0,0.00023013,4]
[365303485,1749588648304,-460.0,0.00023013,4]
[365303486,1749588648313,-460.0,0.00023013,4]
[365303487,1749588648323,-1864.08891747,0.00023038,8]
[365303488,1749588648333,-500.0,0.00023073,2]
[365303489,1749588648343,-500.0,0.00023073,2]
[365303490,1749588648353,-500.0,0.00023097,2]
[365303491,1749588648363,-2115.10904876,0.00023097,2]
[365303492,1749588648374,-550.0,0.00023097,2]
[365303493,1749588648387,-2115.10904876,0.00023097,2]
[365303494,1749588648397,-2115.10904876,0.00023097,2]
[365303495,1749588648406,-2115.10904876,0.00023097,2]
[365303496,1749588648416,-2115.10904876,0.00023097,2]
[365303497,1749588648426,-2115.10904876,0.00023097,2]
[365303498,1749588648436,-2115.10904876,0.00023097,2]
[365303499,1749588648445,-2115.10904876,0.00023097,2]
[365303500,1749588648454,-2115.10904876,0.00023097,2]
[365303501,1749588648463,-2115.10904876,0.00023097,2]
[365303502,1749588648473,-2115.10904876,0.00023097,2]
[365303503,1749588648482,-2115.10904876,0.00023097,2]
[365303504,1749588648491,-2115.10904876,0.00023097,2]
[365303505,1749588648500,-1249.91,0.000231,7]
[365303506,1749588648509,-88880.14,0.000231,7]
[365303507,1749588648518,-1500.0,0.00023111,2]
[365303508,1749588648528,-1864.08891747,0.00023141,8]
[365303509,1749588648537,-500.0,0.00023143,2]
[365303510,1749588648547,-424.12530924,0.00023194,2]
[365303511,1749588648557,-160.0,0.00023194,2]
[365303512,1749588648567,-229.6792923,0.00023194,2]
[365303513,1749588648576,-834.9046531,0.00023194,2]
[365303514,1749588648586,-160.0,0.00023194,2]
[365303515,1749588648595,-842.5625,0.00023194,2]
[365303516,1749588648604,-2066.21,0.00023196,2]
[365303517,1749588648614,-500.0,0.00023241,2]
[365303518,1749588648623,-1864.08891747,0.00023245,8]
[365303519,1749588648633,-360.0,0.00023287,4]
[365303520,1749588648642,-410.0,0.00023287,4]
[365303521,1749588648652,-460.0,0.00023287,4]
[365303522,1749588648661,-460.0,0.00023287,4]
[365303523,1749588648671,-1374.56,0.00023287,4]
[365303524,1749588648680,-460.0,0.00023287,4]
[365303525,1749588648690,-460.0,0.00023287,4]
[365303526,1749588648699,-360.0,0.00023287,4]
[365303527,1749588648708,-1447.28,0.00023287,4]
[365303528,1749588648718,-460.0,0.00023287,4]
[365303529,1749588648728,-460.0,0.00023287,4]
[365303530,1749588648737,-460.0,0.00023287,4]
[365303531,1749588648747,-460.0,0.00023287,4]
[365303532,1749588648758,-460.0,0.00023287,4]
[365303533,1749588648770,-460.0,0.00023287,4]
[365303534,1749588648780,-607.40849771,0.00023287,4]
[365303535,1749588648790,-1347.28,0.00023287,4]
[365303536,1749588648799,-300.0,0.00023287,4]
[365303537,1749588648809,-1315.98,0.00023287,4]
[365303538,1749588648820,-1415.55,0.00023287,4]
[365303539,1749588648830,-460.0,0.00023287,4]
[365303540,1749588648841,-460.0,0.00023287,4]
[365303541,1749588648851,-460.0,0.00023287,4]
[365303542,1749588648861,-1157.58,0.00023287,4]
[365303543,1749588648871,-477.52,0.00023287,4]
[365303544,1749588648881,-460.0,0.00023287,4]
[365303545,1749588648891,-972.44,0.00023287,4]
[365303546,1749588648901,-1004.8,0.00023287,4]
[365303547,1749588648911,-1677.66,0.00023287,4]
[365303548,1749588648921,-460.0,0.00023287,4]
[365303549,1749588648932,-400.09792632,0.00023287,4]
[365303550,1749588648942,-460.0,0.00023287,4]
[365303551,1749588648951,-472.76,0.00023287,4]
[365303552,1749588648962,-368.08,0.00023287,4]
[365303553,1749588648971,-460.0,0.00023287,4]
[365303554,1749588648981,-405.7,0.00023287,4]
[365303555,1749588648991,-460.0,0.00023287,4]
[365303556,1749588649000,-460.0,0.00023287,4]
[365303557,1749588649010,-10511.14545127,0.00023307,2]
[365303558,1749588649019,-1864.08891747,0.00023348,9]
[365303559,1749588649029,-1864.08891747,0.00023452,9]
[365303560,1749588649038,-500.0,0.00023517,2]
[365303561,1749588649048,-207.4,0.00023529,2]
[365303562,1749588649057,-5000.0,0.00023529,2]
[365303563,1749588649067,-151.0,0.00023529,2]
[365303564,1749588649077,-2500.0,0.00023529,2]
[365303565,1749588649086,-2500.0,0.00023529,2]
[365303566,1749588649096,-2500.0,0.00023529,2]
[365303567,1749588649106,-2500.0,0.00023529,2]
[365303568,1749588649115,-801.44693128,0.00023529,2]
[365303569,1749588649125,-1688.0,0.00023529,2]
[365303570,1749588649135,-1864.08891747,0.00023555,9]
[365303571,1749588649144,-460.0,0.00023561,4]
[365303572,1749588649153,-460.0,0.00023561,4]
[365303573,1749588649164,-1374.56,0.00023561,4]
[365303574,1749588649174,-460.0,0.00023561,4]
[365303575,1749588649183,-460.0,0.00023561,4]
[365303576,1749588649194,-1447.28,0.00023561,4]
[365303577,1749588649203,-546.72770706,0.00023561,4]
[365303578,1749588649214,-460.0,0.00023561,4]
[365303579,1749588649224,-460.0,0.00023561,4]
[365303580,1749588649235,-460.0,0.00023561,4]
[365303581,1749588649245,-460.0,0.00023561,4]
[365303582,1749588649255,-460.0,0.00023561,4]
[365303583,1749588649264,-1347.28,0.00023561,4]
[365303584,1749588649274,-1315.98,0.00023561,4]
[365303585,1749588649284,-1415.55,0.00023561,4]
[365303586,1749588649293,-460.0,0.00023561,4]
[365303587,1749588649303,-460.0,0.00023561,4]
[365303588,1749588649312,-460.0,0.00023561,4]
[365303589,1749588649322,-1157.58,0.00023561,4]
[365303590,1749588649331,-477.52,0.00023561,4]
[365303591,1749588649340,-320.0,0.00023561,4]
[365303592,1749588649350,-972.44,0.00023561,4]
[365303593,1749588649359,-1004.8,0.00023561,4]
[365303594,1749588649369,-1677.66,0.00023561,4]
[365303595,1749588649381,-460.0,0.00023561,4]
[365303596,1749588649390,-460.0,0.00023561,4]
[365303597,1749588649399,-472.76,0.00023561,4]
[365303598,1749588649408,-460.0,0.00023561,4]
[365303599,1749588649417,-460.0,0.00023561,4]
[365303600,1749588649428,-460.0,0.00023561,4]
[365303601,1749588649437,-1750.456,0.00023584,2]
[365303602,1749588649446,-1000.0,0.00023621,2]
[365303603,1749588649456,-219.96597335,0.00023639,2]
[365303604,1749588649466,-1864.08891747,0.00023659,9]
[365303605,1749588649475,-1000.0,0.00023659,2]
[365303606,1749588649484,-159.41069738,0.00023671,2]
[365303607,1749588649494,-1864.08891747,0.00023762,9]
[365303608,1749588649503,-460.0,0.00023835,4]
[365303609,1749588649512,-460.0,0.00023835,4]
[365303610,1749588649521,-1374.56,0.00023835,4]
[365303611,1749588649530,-460.0,0.00023835,4]
[365303612,1749588649539,-460.0,0.00023835,4]
[365303613,1749588649550,-1447.28,0.00023835,4]
[365303614,1749588649559,-380.0,0.00023835,4]
[365303615,1749588649670,-460.0,0.00023835,4]
[365303616,1749588649680,-460.0,0.00023835,4]
[365303617,1749588649690,-460.0,0.00023835,4]
[365303618,1749588649699,-460.0,0.00023835,4]
[365303619,1749588649708,-1347.28,0.00023835,4]
[365303620,1749588649718,-1315.98,0.00023835,4]
[365303621,1749588649727,-1415.55,0.00023835,4]
[365303622,1749588649737,-460.0,0.00023835,4]
[365303623,1749588649746,-460.0,0.00023835,4]
[365303624,1749588649756,-460.0,0.00023835,4]
[365303625,1749588649766,-1157.58,0.00023835,4]
[365303626,1749588649775,-477.52,0.00023835,4]
[365303627,1749588649785,-972.44,0.00023835,4]
[365303628,1749588649795,-1004.8,0.00023835,4]
[365303629,1749588649803,-1677.66,0.00023835,4]
[365303630,1749588649813,-460.0,0.00023835,4]
[365303631,1749588649823,-460.0,0.00023835,4]
[365303632,1749588649832,-472.76,0.00023835,4]
[365303633,1749588649842,-460.0,0.00023835,4]
[365303634,1749588649851,-460.0,0.00023835,4]
[365303635,1749588649861,-460.0,0.00023835,4]
[365303636,1749588649870,-1864.08891747,0.00023866,10]
[365303637,1749588649881,-176.703382,0.00023961,11]
[365303638,1749588649891,-1864.08891747,0.00023969,10]
[365303639,1749588649900,-439.0150146,0.00023978,2]
[365303640,1749588649910,-159.41069738,0.00024,2]
[365303641,1749588649919,-159.4106974,0.00024,2]
[365303642,1749588649929,-613.02,0.00024,7]
[365303643,1749588649938,-151.0,0.00024,9]
[365303644,1749588649948,-250.0,0.00024041,2]
[365303645,1749588649958,-1000.0,0.00024065,2]
[365303646,1749588649968,-1864.08891747,0.00024072,10]
[365303647,1749588649978,-5000.0,0.00024077,2]
[365303648,1749588649988,-172.10014688,0.000241,2]
[365303649,1749588649997,-460.0,0.00024109,4]
[365303650,1749588650007,-460.0,0.00024109,4]
[365303651,1749588650017,-1374.56,0.00024109,4]
[365303652,1749588650027,-460.0,0.00024109,4]
[365303653,1749588650036,-460.0,0.00024109,4]
[365303654,1749588650045,-1447.28,0.00024109,4]
[365303655,1749588650055,-460.0,0.00024109,4]
[365303656,1749588650065,-460.0,0.00024109,4]
[365303657,1749588650075,-460.0,0.00024109,4]
[365303658,1749588650085,-460.0,0.00024109,4]
[365303659,1749588650095,-1347.28,0.00024109,4]
[365303660,1749588650104,-1315.98,0.00024109,4]
[365303661,1749588650114,-1415.55,0.00024109,4]
[365303662,1749588650123,-460.0,0.00024109,4]
[365303663,1749588650134,-460.0,0.00024109,4]
[365303664,1749588650144,-460.0,0.00024109,4]
[365303665,1749588650153,-1157.58,0.00024109,4]
[365303666,1749588650163,-477.52,0.00024109,4]
[365303667,1749588650174,-972.44,0.00024109,4]
[365303668,1749588650183,-1004.8,0.00024109,4]
[365303669,1749588650193,-1677.66,0.00024109,4]
[365303670,1749588650203,-460.0,0.00024109,4]
[365303671,1749588650213,-460.0,0.00024109,4]
[365303672,1749588650223,-472.76,0.00024109,4]
[365303673,1749588650233,-460.0,0.00024109,4]
[365303674,1749588650244,-460.0,0.00024109,4]
[365303675,1749588650253,-527.4,0.00024109,4]
[365303676,1749588650263,-1864.08891747,0.00024176,10]
[365303677,1749588650272,-1190.73,0.000242,2]
[365303678,1749588650282,-1249.91,0.000242,7]
[365303679,1749588650292,-88880.14,0.000242,7]
[365303680,1749588650302,-151.0,0.000242,7]
[365303681,1749588650312,-151.0,0.000242,7]
[365303682,1749588650322,-151.0,0.000242,7]
[365303683,1749588650331,-1864.08891747,0.00024279,10]
[365303684,1749588650341,-151.0,0.000243,5]
[365303685,1749588650351,-315.18454239,0.000243,10]
[365303686,1749588650361,-159.41069738,0.00024301,2]
[365303687,1749588650372,-9432.71,0.00024365,11]
[365303688,1749588650383,-1864.08891747,0.00024383,11]
[365303689,1749588650393,-460.0,0.00024383,4]
[365303690,1749588650403,-289.31,0.00024383,4]
[365303691,1749588650412,-151.0,0.00024383,7]
[365303692,1749588650423,-1374.56,0.00024383,4]
[365303693,1749588650433,-460.0,0.00024383,4]
[365303694,1749588650444,-460.0,0.00024383,4]
[365303695,1749588650455,-1447.28,0.00024383,4]
[365303696,1749588650465,-341.4321,0.00024383,7]
[365303697,1749588650475,-341.4321,0.00024383,7]
[365303698,1749588650484,-460.0,0.00024383,4]
[365303699,1749588650494,-151.0,0.00024383,7]
[365303700,1749588650504,-460.0,0.00024383,4]
[365303701,1749588650515,-460.0,0.00024383,4]
[365303702,1749588650525,-460.0,0.00024383,4]
[365303703,1749588650535,-1347.28,0.00024383,4]
[365303704,1749588650545,-1315.98,0.00024383,4]
[365303705,1749588650555,-1415.55,0.00024383,4]
[365303706,1749588650565,-460.0,0.00024383,4]
[365303707,1749588650575,-460.0,0.00024383,4]
[365303708,1749588650584,-460.0,0.00024383,4]
[365303709,1749588650595,-1157.58,0.00024383,4]
[365303710,1749588650605,-477.52,0.00024383,4]
[365303711,1749588650614,-972.44,0.00024383,4]
[365303712,1749588650624,-1004.8,0.00024383,4]
[365303713,1749588650634,-1677.66,0.00024383,4]
[365303714,1749588650643,-460.0,0.00024383,4]
[365303715,1749588650653,-460.0,0.00024383,4]
[365303716,1749588650663,-472.76,0.00024383,4]
[365303717,1749588650673,-460.0,0.00024383,4]
[365303718,1749588650682,-460.0,0.00024383,4]
[365303719,1749588650691,-991.018022,0.00024386,3]
[365303720,1749588650701,-151.0,0.000244,7]
[365303721,1749588650710,-397.0,0.00024425,2]
[365303722,1749588650720,-151.0,0.00024486,7]
[365303723,1749588650730,-228.314082,0.00024486,7]
[365303724,1749588650739,-228.314082,0.00024486,7]
[365303725,1749588650749,-155.260894,0.00024486,7]
[365303726,1749588650758,-277.940277,0.00024486,7]
[365303727,1749588650768,-1864.08891747,0.00024486,11]
[365303728,1749588650778,-15112.96,0.00024496,11]
[365303729,1749588650788,-166.0,0.0002452,3]
[365303730,1749588650798,-166.0,0.0002452,3]
[365303731,1749588650807,-172.0,0.0002452,3]
[365303732,1749588650817,-316.0,0.0002452,3]
[365303733,1749588650827,-316.0,0.0002452,3]
[365303734,1749588650837,-316.0,0.0002452,3]
[365303735,1749588650847,-316.0,0.0002452,3]
[365303736,1749588650856,-316.0,0.0002452,3]
[365303737,1749588650866,-316.0,0.0002452,3]
[365303738,1749588650876,-316.0,0.0002452,3]
[365303739,1749588650886,-316.0,0.0002452,3]
[365303740,1749588650896,-316.0,0.0002452,3]
[365303741,1749588650907,-316.0,0.0002452,3]
[365303742,1749588650917,-316.0,0.0002452,3]
[365303743,1749588650927,-316.0,0.0002452,3]
[365303744,1749588650937,-316.0,0.0002452,3]
[365303745,1749588650947,-316.0,0.0002452,3]
[365303746,1749588650957,-316.0,0.0002452,3]
[365303747,1749588650967,-316.0,0.0002452,3]
[365303748,1749588650978,-316.0,0.0002452,3]
[365303749,1749588650987,-316.0,0.0002452,3]
[365303750,1749588650998,-316.0,0.0002452,3]
[365303751,1749588651008,-316.0,0.0002452,3]
[365303752,1749588651018,-316.0,0.0002452,3]
[365303753,1749588651027,-316.0,0.0002452,3]
[365303754,1749588651037,-414.21939916,0.00024548,2]
[365303755,1749588651047,-168.0,0.00024578,2]
[365303756,1749588651058,-350.24979453,0.00024589,2]
[365303757,1749588651069,-1864.08891747,0.0002459,11]
[365303758,1749588651079,-151.0,0.000246,9]
[365303759,1749588651088,-1500.0,0.00024613,2]
[365303760,1749588651099,-746.43,0.00024623,5]
[365303761,1749588651108,-5000.0,0.00024625,2]
[365303762,1749588651118,-800.0,0.00024642,2]
[365303763,1749588651129,-13012.02607367,0.0002465,30]
[365303764,1749588651139,-151.0,0.0002465,7]
[365303765,1749588651149,-151.0,0.0002465,7]
[365303766,1749588651159,-316.0,0.00024657,3]
[365303767,1749588651168,-316.0,0.00024657,3]
[365303768,1749588651178,-316.0,0.00024657,3]
[365303769,1749588651188,-269.88134464,0.00024657,3]
[365303770,1749588651197,-460.0,0.00024657,4]
[365303771,1749588651207,-1374.56,0.00024657,4]
[365303772,1749588651217,-460.0,0.00024657,4]
[365303773,1749588651226,-460.0,0.00024657,4]
[365303774,1749588651236,-1447.28,0.00024657,4]
[365303775,1749588651246,-460.0,0.00024657,4]
[365303776,1749588651256,-460.0,0.00024657,4]
[365303777,1749588651266,-460.0,0.00024657,4]
[365303778,1749588651275,-460.0,0.00024657,4]
[365303779,1749588651285,-1347.28,0.00024657,4]
[365303780,1749588651294,-1315.98,0.00024657,4]
[365303781,1749588651304,-1415.55,0.00024657,4]
[365303782,1749588651313,-460.0,0.00024657,4]
[365303783,1749588651323,-301.25654627,0.00024657,4]
[365303784,1749588651333,-348.32,0.00024657,4]
[365303785,1749588651342,-1157.58,0.00024657,4]
[365303786,1749588651352,-477.52,0.00024657,4]
[365303787,1749588651362,-972.44,0.00024657,4]
[365303788,1749588651372,-1004.8,0.00024657,4]
[365303789,1749588651382,-1677.66,0.00024657,4]
[365303790,1749588651392,-460.0,0.00024657,4]
[365303791,1749588651402,-460.0,0.00024657,4]
[365303792,1749588651411,-472.76,0.00024657,4]
[365303793,1749588651421,-460.0,0.00024657,4]
[365303794,1749588651432,-460.0,0.00024657,4]
[365303795,1749588651441,-200.0,0.00024658,15]
[365303796,1749588651451,-800.0,0.00024665,2]
[365303797,1749588651463,-151.0,0.00024693,7]
[365303798,1749588651473,-151.0,0.00024693,7]
[365303799,1749588651483,-151.0,0.00024693,7]
[365303800,1749588651492,-1864.08891747,0.00024693,11]
[365303801,1749588651502,-41632.27,0.000247,2]
[365303802,1749588651534,-160.0,0.000247,3]
[365303803,1749588651544,-424.12530924,0.000247,3]
[365303804,1749588651553,-160.0,0.000247,3]
[365303805,1749588651562,-315.18454239,0.000247,30]
[365303806,1749588651571,-160.0,0.000247,3]
[365303807,1749588651581,-11858.11761888,0.000247,3]
[365303808,1749588651591,-834.9046531,0.000247,3]
[365303809,1749588651600,-229.6792923,0.000247,3]
[365303810,1749588651610,-842.5625,0.000247,3]
[365303811,1749588651619,-203.24436406,0.00024703,2]
[365303812,1749588651628,-216.675,0.00024708,2]
[365303813,1749588651639,-280.0,0.00024724,2]
[365303814,1749588651648,-963.0,0.00024724,2]
[365303815,1749588651657,-2160.0,0.00024724,2]
[365303816,1749588651667,-653.0,0.00024724,2]
[365303817,1749588651676,-282.0,0.0002475,2]
[365303818,1749588651685,-1864.08891747,0.00024797,11]
[365303819,1749588651694,-10511.14545127,0.00024797,2]
[365303820,1749588651704,-7409.5826825,0.00024797,2]
[365303821,1749588651713,-2000.0,0.000248,2]
[365303822,1749588651722,-2000.0,0.000248,2]
[365303823,1749588651731,-2000.0,0.000248,2]
[365303824,1749588651740,-17343.4864323,0.000248,5]
[365303825,1749588651749,-450.0,0.000248,5]
[365303826,1749588651758,-2200.0,0.00024804,2]
[365303827,1749588651768,-746.43,0.00024823,5]
[365303828,1749588651776,-1744.0,0.00024825,3]
[365303829,1749588651786,-1744.0,0.00024825,3]
[365303830,1749588651795,-1257.55281195,0.00024825,3]
[365303831,1749588651804,-282.0,0.00024827,2]
[365303832,1749588651814,-160.0,0.00024871,3]
[365303833,1749588651823,-160.0,0.00024871,5]
[365303834,1749588651832,-500.0,0.00024873,2]
[365303835,1749588651841,-500.0,0.00024873,2]
[365303836,1749588651851,-500.0,0.00024873,2]
[365303837,1749588651860,-257.4614437,0.00024873,2]
[365303838,1749588651870,-500.0,0.00024874,9]
[365303839,1749588651879,-158.7504224,0.00024877,2]
[365303840,1749588651890,-158.7504224,0.00024877,2]
[365303841,1749588651900,-158.7504224,0.00024877,2]
[365303842,1749588651909,-5000.0,0.00024885,2]
[365303843,1749588651918,-500.0,0.00024885,2]
[365303844,1749588651928,-151.0,0.00024885,7]
[365303845,1749588651937,-151.0,0.00024885,7]
[365303846,1749588651946,-151.0,0.00024885,7]
[365303847,1749588651956,-151.0,0.00024885,7]
[365303848,1749588651965,-151.0,0.00024885,7]
[365303849,1749588651974,-151.0,0.00024885,7]
[365303850,1749588651983,-151.0,0.00024885,7]
[365303851,1749588651992,-197.457716,0.00024885,7]
[365303852,1749588652001,-151.0,0.00024885,7]
[365303853,1749588652010,-151.676002,0.00024885,7]
[365303854,1749588652019,-151.0,0.00024885,7]
[365303855,1749588652029,-151.0,0.00024885,7]
[365303856,1749588652038,-151.0,0.00024885,7]
[365303857,1749588652048,-151.0,0.00024885,7]
[365303858,1749588652058,-151.0,0.00024885,7]
[365303859,1749588652068,-151.0,0.00024885,7]
[365303860,1749588652077,-151.0,0.00024885,7]
[365303861,1749588652086,-151.0,0.00024885,7]
[365303862,1749588652095,-151.0,0.00024885,7]
[365303863,1749588652105,-151.0,0.00024885,7]
[365303864,1749588652114,-151.0,0.00024885,7]
[365303865,1749588652123,-151.0,0.00024885,7]
[365303866,1749588652134,-151.0,0.00024885,7]
[365303867,1749588652143,-151.0,0.00024885,7]
[365303868,1749588652153,-151.0,0.00024885,7]
[365303869,1749588652162,-151.0,0.00024885,7]
[365303870,1749588652172,-151.0,0.00024885,7]
[365303871,1749588652182,-151.0,0.00024885,7]
[365303872,1749588652192,-274.127004,0.00024885,7]
[365303873,1749588652201,-151.0,0.00024885,7]
[365303874,1749588652210,-151.0,0.00024885,7]
[365303875,1749588652220,-151.0,0.00024885,7]
[365303876,1749588652229,-151.0,0.00024885,7]
[365303877,1749588652238,-151.0,0.00024885,7]
[365303878,1749588652248,-151.0,0.00024885,7]
[365303879,1749588652257,-151.0,0.00024885,7]
[365303880,1749588652266,-151.0,0.00024885,7]
[365303881,1749588652275,-151.0,0.00024885,7]
[365303882,1749588652284,-174.946922,0.00024885,7]
[365303883,1749588652293,-151.0,0.00024892,7]
[365303884,1749588652302,-151.0,0.00024892,7]
[365303885,1749588652311,-151.0,0.00024892,7]
[365303886,1749588652320,-151.0,0.00024892,7]
[365303887,1749588652329,-250.562854,0.00024892,7]
[365303888,1749588652338,-151.0,0.00024892,7]
[365303889,1749588652347,-165.817774,0.00024892,7]
[365303890,1749588652356,-165.817774,0.00024892,7]
[365303891,1749588652366,-165.817774,0.00024892,7]
[365303892,1749588652379,-165.817774,0.00024892,7]
[365303893,1749588652390,-165.817774,0.00024892,7]
[365303894,1749588652400,-165.817774,0.00024892,7]
[365303895,1749588652409,-165.817774,0.00024892,7]
[365303896,1749588652418,-165.817774,0.00024892,7]
[365303897,1749588652428,-165.817774,0.00024892,7]
[365303898,1749588652437,-165.817774,0.00024892,7]
[365303899,1749588652446,-165.817774,0.00024892,7]
[365303900,1749588652455,-165.817774,0.00024892,7]
[365303901,1749588652465,-165.817774,0.00024892,7]
[365303902,1749588652474,-165.817774,0.00024892,7]
[365303903,1749588652485,-165.817774,0.00024892,7]
[365303904,1749588652494,-165.817774,0.00024892,7]
[365303905,1749588652504,-165.817774,0.00024892,7]
[365303906,1749588652514,-165.817774,0.00024892,7]
[365303907,1749588652525,-165.817774,0.00024892,7]
[365303908,1749588652535,-165.817775,0.00024892,7]
[365303909,1749588652545,-151.0,0.00024892,7]
[365303910,1749588652555,-192.949382,0.00024892,7]
[365303911,1749588652564,-151.0,0.00024892,7]
[365303912,1749588652574,-151.0,0.00024892,7]
[365303913,1749588652583,-151.0,0.00024892,7]
[365303914,1749588652594,-151.0,0.00024892,7]
[365303915,1749588652604,-151.0,0.00024892,7]
[365303916,1749588652613,-151.0,0.00024892,7]